[Event "Israeli Team U18-ch 2022"]
[Site "Be'er Ya'akov"]
[Date "2022.08.14"]
[Round "1.1"]
[White "Gani, Itai"]
[Black "Rozen, Eytan"]
[Result "0-1"]
[ECO "A57"]
[WhiteElo "1837"]
[BlackElo "2465"]
[Annotator "TA"]
[PlyCount "58"]
[EventDate "2022.08.14"]
[EventCountry "ISR"]
[SourceTitle "playchess.com"]
[Source "ChessBase"]
[SourceQuality "1"]
[TimeControl "3000+10"]

{[%evp 10,58,59,56,85,70,75,71,83,51,52,61,66,50,60,57,66,58,77,58,52,22,50,0,9,1,0,0,0,0,0,0,0,0,11,-22,-29,-30,-23,-13,-22,-20,-6,-44,0,-212,-182,-693,-669,-629,-653]} 1. d4 {[%emt 0:00:05]} Nf6 {[%emt 0:00:17]} 2. Nf3 {[%emt 0:00:08]} c5 {[%emt 0:00:49]} 3. d5 {[%emt 0:01:51]} b5 {[%emt 0:00:04]} 4. c4 {[%emt 0:01:30]} bxc4 {[%emt 0:00:38]} 5. Nc3 {[%emt 0:01:36]} d6 {[%emt 0:00:52]} 6. e4 {[%emt 0:01:58]} Bg4 {[%emt 0:02:21] A57: Benko/Volga Gambit.} 7. Bxc4 {[%emt 0:03:04]} Nbd7 {[%emt 0:00:29] Inhibits e5.} 8. O-O {[%emt 0:03:20]} g6 {[%emt 0:00:07] [#] White is better.} 9. Be2 $146 {[%emt 0:03:07]} ({Predecessor:} 9. h3 Bxf3 10. Qxf3 Bg7 11. Qe2 O-O 12. f4 Rb8 13. Re1 Ne8 14. Qc2 Nc7 15. Bd2 {0-1 (64) Priyadharshan,K (2460)-Bregadze,L (2458) Saint Louis 2014}) 9... Bxf3 {[%emt 0:00:23]} 10. Bxf3 {[%emt 0:00:07]} Bg7 {[%emt 0:00:02]} 11. Be3 {[%emt 0:03:29]} O-O {[%emt 0:00:32]} 12. Be2 {[%emt 0:02:17]} Rb8 {[%emt 0:04:00]} 13. Rb1 {[%emt 0:03:09]} Qa5 {[%emt 0:01:20]} 14. Qd2 {[%emt 0:01:56]} Rfc8 {[%emt 0:05:45]} 15. h4 {[%emt 0:04:51]} Ne5 {[%emt 0:03:49]} 16. f3 {[%emt 0:01:08]} Qb4 {[%emt 0:04:24]} 17. a3 {[%emt 0:03:34]} Qb3 {[%emt 0:00:27]} 18. Bd1 {[%emt 0:02:45]} Qb7 {[%emt 0:03:46] [#] ...Nc4 is the strong threat.} 19. Be2 {[%emt 0:00:37] Against Nc4} Qb3 {[%emt 0:00:16] Inhibits b4.} 20. Bd1 {[%emt 0:00:22]} Qb7 {[%emt 0:00:02] White must now prevent ...Nc4.} 21. Be2 {[%emt 0:00:07] Prevents Nc4.} Qd7 {[%emt 0:00:10]} 22. Bh6 {[%emt 0:02:28]} Bxh6 {[%emt 0:01:56]} 23. Qxh6 {[%emt 0:00:06]} Rb3 {[%emt 0:01:39]} 24. Qd2 {[%emt 0:02:41]} c4 {[%emt 0:03:29]} 25. Rfc1 {[%emt 0:01:47]} Rcb8 {[%emt 0:01:37]} 26. Nd1 {[%emt 0:02:18]} Qb7 {[%emt 0:03:44]} 27. Bxc4 $2 {[%emt 0:01:21] [#]} (27. Rc3 $11) 27... Rxf3 $1 $19 {[%emt 0:00:27]} 28. Be2 $2 {[%emt 0:01:22]} (28. Qd4) 28... Qb6+ {[%emt 0:00:15]} 29. Kh1 {[%emt 0:00:25]} Nxe4 {[%emt 0:00:24] Weighted Error Value: White=0.57/Black=0.06 (flawless)} 0-1

[Event "Israeli Team U18-ch 2022"]
[Site "Be'er Ya'akov"]
[Date "2022.08.14"]
[Round "1.2"]
[White "Milikow, Yoav"]
[Black "Lapushnian, Maya"]
[Result "1-0"]
[ECO "D35"]
[WhiteElo "2452"]
[BlackElo "1624"]
[Annotator "TA"]
[PlyCount "99"]
[EventDate "2022.08.14"]
[EventCountry "ISR"]
[SourceTitle "playchess.com"]
[Source "ChessBase"]
[SourceQuality "1"]
[TimeControl "3000+10"]

{[%evp 17,99,33,35,38,31,27,42,17,28,31,38,22,23,0,26,24,27,31,29,19,28,15,39,34,49,50,58,20,25,12,20,6,8,12,18,13,27,15,15,9,26,8,10,-10,50,51,48,42,46,54,79,79,89,74,77,58,118,83,122,122,231,159,149,-97,412,402,392,378,407,357,556,366,843,774,1264,1285,1127,1122,1311,369,394,0,0,0]} 1. d4 {[%emt 0:50:20]} d5 {[%emt 0:50:20]} 2. c4 {[%emt 0:00:10]} e6 {[%emt 0:00:10]} 3. Nc3 {[%emt 0:00:00]} Nf6 {[%emt 0:00:00]} 4. Nf3 {[%emt 0:00:00]} a6 {[%emt 0:00:00]} 5. cxd5 {[%emt 0:00:00]} exd5 {[%emt 0:00:00]} 6. Bg5 {[%emt 0:00:00]} Be6 {[%emt 0:00:00]} 7. e3 {[%emt 0:00:00]} Be7 {[%emt 0:00:00]} 8. Bd3 {[%emt 0:00:00]} O-O {[%emt 0:00:00]} 9. O-O {[%emt 0:00:00]} Nbd7 {[%emt 0:00:00]} 10. h3 {[%emt 0:00:00] D35: Queen's Gambit Declined: Exchange Variation.} c6 {[%emt 0:00:00] [#]} 11. Bf4 $146 {[%emt 0:00:00]} ({Predecessor:} 11. Qc2 h6 12. Bf4 Rc8 13. Rad1 Re8 14. Bh2 Bf8 15. Qb1 b5 16. Ne2 Ne4 17. Ne5 Ndf6 {1-0 (62) Nihal,S (2620)-Smirnov,A (2597) Chess.com INT 2020}) 11... Nb6 {[%emt 0:00:00]} 12. Ne5 {[%emt 0:00:00] White is slightly better.} Nfd7 {[%emt 0:00:00]} 13. Qc2 {[%emt 0:00:00]} h6 {[%emt 0:00:00]} 14. Bh7+ {[%emt 0:00:00]} Kh8 {[%emt 0:00:00]} 15. Bd3 {[%emt 0:00:00]} Nxe5 {[%emt 0:00:00]} 16. Bxe5 {[%emt 0:00:00]} Bd6 {[%emt 0:00:00]} 17. Bxd6 {[%emt 0:00:00]} (17. Ne2 {is more complex.} Nc4 18. Bxc4 dxc4 19. Nf4) 17... Qxd6 {[%emt 0:00:00]} 18. Rad1 {[%emt 0:00:00]} Nd7 {[%emt 0:00:00]} 19. f3 {[%emt 0:00:00][%cal Bf2f3,Bf3f4][%mdl 32]} Rac8 {[%emt 0:00:00]} 20. Qf2 {[%emt 0:00:00]} c5 {[%emt 0:00:00]} 21. dxc5 {[%emt 0:00:00]} Qxc5 {[%emt 0:00:00]} 22. f4 {[%emt 0:00:00] [#] Black must now prevent f5.} Nf6 {[%emt 0:00:00]} 23. Rfe1 {[%emt 0:00:00]} Rfe8 {[%emt 0:00:00]} 24. Kh2 {[%emt 0:00:00]} Bd7 {[%emt 0:00:00]} 25. Bc2 {[%emt 0:00:00]} Bc6 {[%emt 0:00:00]} 26. Rd4 {[%emt 0:00:00]} Qb6 {[%emt 0:00:28]} 27. Bb3 {[%emt 0:00:00]} Rcd8 {[%emt 0:00:26]} 28. Red1 {[%emt 0:00:00]} Qc5 {[%emt 0:01:59]} 29. g4 {[%emt 0:00:00]} Qe7 $1 {[%emt 0:01:13]} 30. Re1 {[%emt 0:00:00]} Ne4 {[%emt 0:00:07]} (30... b5 $11) 31. Nxe4 $14 {[%emt 0:00:00]} dxe4 {[%emt 0:00:01]} 32. Red1 {[%emt 0:00:00][%cal Be1d1,Bd1d4,Bd4d6,Bd6g6][%mdl 32]} Rxd4 {[%emt 0:00:03]} 33. Rxd4 {[%emt 0:00:00]} Qf6 {[%emt 0:00:38]} 34. Qd2 {[%emt 0:00:00]} Kg8 {[%emt 0:00:11]} 35. Rd6 {[%emt 0:00:00]} Qh4 {[%emt 0:00:09]} 36. Kg2 {[%emt 0:00:00]} Qe7 {[%emt 0:00:02]} (36... Bb5 $14) 37. Kg3 {[%emt 0:00:07]} Rc8 {[%emt 0:00:15]} 38. Qd4 {[%emt 0:00:24]} Re8 {[%emt 0:00:16]} (38... a5 $16 {was called for.}) 39. Rg6 {[%emt 0:00:21][%csl Gg6][%cal Rd4g7]} Qf8 {[%emt 0:00:09]} 40. Qf6 $2 {[%emt 0:01:07] 0x0.0019ee0830b7dp-1022s more active pieces.} (40. h4 $16 {stays on course.}) 40... Rd8 $2 {[%emt 0:00:11][%mdl 8192] [#]} (40... Kh7 $17 {and life is bright.} 41. Qxf7 Qxf7 42. Bxf7 Re7 43. Rxc6 bxc6) 41. Rxg7+ $18 {[%emt 0:00:40][%mdl 512]} Qxg7 {[%emt 0:00:05]} 42. Qxd8+ {[%emt 0:00:06][%mdl 4096] Endgame KQB-KQB} Kh7 {[%emt 0:00:00]} 43. Qe7 {[%emt 0:00:21]} a5 {[%emt 0:00:13]} (43... Kg8 {might work better.} 44. h4 Qf8) 44. f5 {[%emt 0:00:20] White wants to mate with f6.} f6 $2 {[%emt 0:00:22]} (44... Kg8 45. Qd8+ Kh7) 45. Bf7 {[%emt 0:00:09]} h5 {[%emt 0:00:11]} 46. Bg6+ {[%emt 0:00:09]} Kg8 {[%emt 0:00:06]} 47. Qe6+ {[%emt 0:00:29]} Kh8 {[%emt 0:00:04]} 48. gxh5 $2 {[%emt 0:00:13]} (48. g5) 48... Qf8 {[%emt 0:00:17]} 49. Kg4 $2 {[%emt 0:00:21]} ({White should play} 49. Kh4 $18) 49... Qd8 $1 $11 {[%emt 0:00:13] ( -> ...Qd1+)} 50. Kh4 {[%emt 0:00:13][%mdl 32768] Weighted Error Value: White=0.60/Black=0.42. Sensor Board Error (Ke4/e5)?} (50. Qf7 {gets mated.} Qd1+ 51. Kh4 Qe1+ 52. Kg4 Qg1+ 53. Kh4 Qg5#) 1-0

[Event "Israeli Team U18-ch 2022"]
[Site "Be'er Ya'akov"]
[Date "2022.08.14"]
[Round "1.3"]
[White "Sternfeld, Tomer"]
[Black "Gorshtein, Asaf"]
[Result "1/2-1/2"]
[ECO "A21"]
[WhiteElo "1569"]
[BlackElo "2112"]
[Annotator "TA"]
[PlyCount "141"]
[EventDate "2022.08.14"]
[EventCountry "ISR"]
[SourceTitle "playchess.com"]
[Source "ChessBase"]
[SourceQuality "1"]
[TimeControl "3000+10"]

{[%evp 15,141,-20,-2,-33,-8,-38,-1,-18,0,0,0,-10,24,14,50,0,0,0,0,0,0,0,0,-6,-8,0,-7,-4,0,-10,-6,-27,-27,-47,-47,-77,-69,-69,-79,-85,-85,-110,-128,-105,-86,-104,-120,-134,0,0,0,0,-2,-179,-167,-204,-204,-198,-166,-191,-185,-224,-222,-222,-202,-237,-233,-210,0,-210,-46,-177,-172,-191,-109,-109,-8,-8,-8,-8,-8,-8,0,0,0,0,0,-8,0,-8,0,-8,0,-29965,-29970,-29970,-29971,-29971,-29972,-29972,0,0,0,0,0,0,0,0,0,0,0,0,0,0,0,0,0,0,0,0,0,0,0,0,0,0,0,0]} 1. c4 {[%emt 0:00:02]} e5 {[%emt 0:00:06]} 2. g3 {[%emt 0:00:03]} d6 {[%emt 0:00:08]} 3. Bg2 {[%emt 0:00:05]} f5 {[%emt 0:00:38]} 4. d4 {[%emt 0:01:26]} Be7 {[%emt 0:01:47][%cal Bf8e7,Be7d8,Bd8b6][%mdl 32]} 5. dxe5 dxe5 {[%emt 0:00:16]} 6. Qxd8+ Bxd8 {[%emt 0:00:06]} 7. Nc3 {[%emt 0:06:14]} Nf6 {[%emt 0:01:07]} 8. e4 {[%emt 0:03:33]} c6 {[%emt 0:08:34]} 9. Nge2 {[%emt 0:03:45] A21: English Opening: 1...e5 2 Nc3.} O-O {[%emt 0:01:47]} 10. O-O {[%emt 0:00:45] [#]} (10. Bh3 {with more complications.} Nxe4 11. Nxe4 fxe4 12. Bxc8 Ba5+ 13. Bd2) 10... Bb6 $146 {[%emt 0:02:56]} ({Predecessor:} 10... Na6 11. Bg5 Nc5 12. Bxf6 Bxf6 13. b4 Nd3 14. a3 Be6 15. exf5 Bxc4 16. Be4 Rfd8 {0-1 (52) Lehtosaari,K (1960)-Niemi,K (2357) Turku 2017}) 11. b3 {[%emt 0:10:40]} Nxe4 {[%emt 0:02:48]} 12. Nxe4 {[%emt 0:00:51]} fxe4 {[%emt 0:01:33]} 13. Ba3 {[%emt 0:01:42]} Rf7 {[%emt 0:02:19]} 14. c5 {[%emt 0:02:07]} Bc7 {[%emt 0:00:43][%cal Oe4e3]} 15. Bxe4 {[%emt 0:00:36]} ({White should try} 15. Nc3 $1 $14) 15... Be6 $11 {[%emt 0:03:42]} 16. Nc3 {[%emt 0:04:10]} Nd7 {[%emt 0:00:48]} 17. Rad1 {[%emt 0:01:47]} Nf6 {[%emt 0:01:52]} 18. Bg2 {[%emt 0:01:38]} a5 {[%emt 0:03:07]} 19. Rd2 {[%emt 0:06:34]} Rd7 {[%emt 0:01:14]} 20. Rxd7 {[%emt 0:01:37]} Bxd7 {[%emt 0:00:03]} 21. Rd1 {[%emt 0:01:15]} Be6 {[%emt 0:00:18]} 22. Bf1 {[%emt 0:01:32]} Kf7 {[%emt 0:00:39]} 23. Bc4 {[%emt 0:00:26]} Rd8 {[%emt 0:03:30]} 24. Rxd8 {[%emt 0:01:08]} Bxd8 {[%emt 0:00:01]} 25. f3 {[%emt 0:00:33]} Bxc4 {[%emt 0:01:35]} 26. bxc4 $17 {[%emt 0:00:01][%mdl 4096] Endgame KBN-KBN} Be7 {[%emt 0:00:20]} 27. Kf2 {[%emt 0:01:13]} Nd7 {[%emt 0:01:29]} 28. Ne4 {[%emt 0:00:26]} b5 {[%emt 0:03:42]} 29. cxb5 {[%emt 0:00:39]} cxb5 {[%emt 0:00:02]} 30. Ke3 {[%emt 0:00:07]} Ke6 {[%emt 0:02:08]} 31. Kd3 {[%emt 0:00:12][%cal Oc5c6]} b4 {[%emt 0:03:40]} (31... Nb8 $17 {White must now prevent ...Na6.} 32. c6 Nxc6 33. Bxe7 Kxe7) 32. c6 $11 {[%emt 0:00:10]} Nb6 {[%emt 0:01:14]} 33. Bc1 {[%emt 0:00:11]} Kd5 {[%emt 0:00:16]} 34. Be3 $2 {[%emt 0:00:03]} (34. c7 $11 {and White has nothing to worry.}) 34... Kxc6 $19 {[%emt 0:00:37]} 35. Bxb6 {[%emt 0:00:02]} Kxb6 {[%emt 0:00:01] KB-KN} 36. Kc4 {[%emt 0:00:00]} Kc6 {[%emt 0:00:02]} 37. Nf2 {[%emt 0:00:12]} h5 {[%emt 0:00:55]} 38. h3 {[%emt 0:00:02]} g6 {[%emt 0:00:05]} 39. Nd3 {[%emt 0:00:01]} Bd6 {[%emt 0:00:06][%cal Oe5e4]} 40. g4 {[%emt 0:00:03]} Bc7 {[%emt 0:00:13]} 41. Nf2 {[%emt 0:00:12]} Bd6 {[%emt 0:00:16]} 42. Nd3 {[%emt 0:00:03]} Bb8 $2 {[%emt 0:00:05]} (42... h4 $19 {...g5 is the strong threat.} 43. Nc1 g5) 43. Nf2 {[%emt 0:00:01] [#]} (43. Nc5 $1 $15) 43... Bc7 $1 {[%emt 0:00:02]} 44. Nd3 {[%emt 0:00:10]} Bd6 {[%emt 0:00:01]} 45. Nf2 {[%emt 0:00:07]} a4 {[%emt 0:00:24]} (45... h4 $17) 46. Nd3 $11 {[%emt 0:00:03]} b3 {[%emt 0:00:01]} 47. axb3 {[%emt 0:00:05]} a3 {[%emt 0:00:26]} 48. Nc1 {[%emt 0:00:01]} Bc5 {[%emt 0:00:07]} 49. b4 {[%emt 0:00:03]} Be3 {[%emt 0:00:08]} 50. Na2 {[%emt 0:00:02]} Bd4 {[%emt 0:00:13]} 51. Nc1 {[%emt 0:00:05]} Kb6 {[%emt 0:00:09]} 52. Na2 {[%emt 0:00:02]} Bb2 {[%emt 0:00:09]} 53. Nc3 {[%emt 0:01:10]} h4 {[%emt 0:00:16]} 54. Kb3 {[%emt 0:00:23][%mdl 8192]} (54. Na4+ $11 Kc6 55. b5+ Kd6 56. Kb3) 54... Bxc3 {[%emt 0:00:09]} 55. Kxc3 {[%emt 0:00:01] KP-KP} Kb5 {[%emt 0:00:01]} 56. Kb3 {[%emt 0:00:01]} a2 {[%emt 0:00:01]} 57. Kxa2 {[%emt 0:00:01] [#]} Kxb4 $2 {[%emt 0:00:00] K3P-K3P} (57... e4 $1 {mates} 58. fxe4 Kxb4 59. Kb2 Kc4 60. Kc2 Kd4 61. Kd2 Kxe4 62. g5 Kf4 63. Ke2 Kg3 64. Ke3 Kxh3 65. Kf3 Kh2 66. Kf2 h3 67. Kf1 Kg3 68. Kg1 Kg4 69. Kh2 Kh4 70. Kh1 Kxg5 71. Kh2 Kh4 72. Kg1 Kg3 73. Kh1 g5 74. Kg1 Kf3 75. Kh2 g4 76. Kg1 g3 77. Kh1 g2+ 78. Kg1 Ke3 79. Kh2 Kf2 80. Kxh3 g1=Q 81. Kh4 Qg6 82. Kh3 Qh5#) 58. Kb2 {[%emt 0:00:02] The position is equal.} Kc4 {[%emt 0:00:02]} (58... g5 $5) 59. Kc2 {[%emt 0:00:07]} Kd4 {[%emt 0:00:04]} 60. Kd2 {[%emt 0:00:01]} g5 {[%emt 0:00:20]} 61. Ke2 {[%emt 0:00:08]} e4 {[%emt 0:00:01]} 62. Kf2 {[%emt 0:00:40]} exf3 {[%emt 0:00:56]} 63. Kxf3 {[%emt 0:00:02] KPP-KPP} Kd3 {[%emt 0:00:01]} 64. Kf2 {[%emt 0:00:01]} Kd2 {[%emt 0:00:07]} (64... Ke4 $5 65. Ke2 Ke5 $11) 65. Kf3 {[%emt 0:00:24] Threatening mate with Ke4.} Kd3 {[%emt 0:00:02]} (65... Ke1 $5 66. Ke4 Kf2 $11) 66. Kf2 Kd2 (66... Ke4 $5 67. Ke2 Kf4 $11) 67. Kf3 {[%emt 0:00:07]} Ke1 {[%emt 0:00:28]} (67... Kd3 $5) 68. Ke4 {[%emt 0:00:01]} Kf2 {[%emt 0:00:01]} (68... Kf1 $5 69. Kf5 Kg2 70. Kxg5 Kxh3 $11) 69. Kf5 {[%emt 0:00:01]} Kg3 {[%emt 0:00:01]} 70. Kxg5 {[%emt 0:00:01] White wants to mate with Kf5.} Kxh3 {[%emt 0:00:01] ( -> ...Kg3)} 71. Kf5 {[%emt 0:00:09] Weighted Error Value: White=0.32/Black=0.29 (precise)} 1/2-1/2

[Event "Israeli Team U18-ch 2022"]
[Site "Be'er Ya'akov"]
[Date "2022.08.14"]
[Round "1.4"]
[White "Ofir, Nevo"]
[Black "Timonin, Roman"]
[Result "1-0"]
[ECO "C50"]
[WhiteElo "1308"]
[BlackElo "1450"]
[Annotator "NA RC"]
[PlyCount "121"]
[EventDate "2022.08.14"]
[EventCountry "ISR"]
[SourceTitle "playchess.com"]
[Source "ChessBase"]
[SourceQuality "1"]
[TimeControl "3000+10"]

1. e4 {[%emt 0:00:01]} e5 {[%emt 0:00:05]} 2. Nf3 {[%emt 0:00:06]} Nc6 {[%emt 0:00:04]} 3. Bc4 {[%emt 0:00:07]} Nf6 {[%emt 0:00:06]} 4. d3 {[%emt 0:00:18]} Bc5 {[%emt 0:00:09]} 5. Be3 {[%emt 0:00:09]} Bxe3 {[%emt 0:00:46]} 6. fxe3 {[%emt 0:00:07]} O-O {[%emt 0:00:10]} 7. O-O {[%emt 0:00:07]} d6 {[%emt 0:00:18]} 8. Nc3 {[%emt 0:00:19]} Na5 {[%emt 0:00:58]} 9. Bb3 {[%emt 0:00:07]} Nxb3 {[%emt 0:00:02]} 10. axb3 {[%emt 0:00:10]} Re8 {[%emt 0:00:17]} 11. Qd2 {[%emt 0:01:00]} c6 {[%emt 0:00:35]} 12. Rae1 {[%emt 0:03:39]} d5 {[%emt 0:10:12]} 13. exd5 {[%emt 0:00:34]} cxd5 {[%emt 0:00:18]} 14. d4 {[%emt 0:00:41]} exd4 {[%emt 0:04:19]} 15. exd4 {[%emt 0:01:05]} Rxe1 {[%emt 0:02:01]} 16. Rxe1 {[%emt 0:00:21]} h6 {[%emt 0:00:39]} 17. Ne5 {[%emt 0:06:05]} Be6 {[%emt 0:03:33]} 18. Nd3 {[%emt 0:01:09]} Qb6 {[%emt 0:04:06]} 19. Nf4 {[%emt 0:00:31]} a6 {[%emt 0:03:29]} 20. Na4 {[%emt 0:00:52]} Qc6 {[%emt 0:01:19]} 21. Nc5 {[%emt 0:01:39]} Ne4 {[%emt 0:02:59]} 22. Nxe4 {[%emt 0:00:34]} dxe4 {[%emt 0:00:02]} 23. d5 {[%emt 0:01:03]} Qb6+ {[%emt 0:00:36]} 24. Qe3 {[%emt 0:00:12]} Qxe3+ {[%emt 0:00:21]} 25. Rxe3 {[%emt 0:00:10]} Bf5 {[%emt 0:00:05]} 26. c4 {[%emt 0:01:55]} g5 {[%emt 0:02:57]} 27. Nh5 {[%emt 0:00:54]} Bg6 {[%emt 0:01:14]} 28. Nf6+ {[%emt 0:01:14]} Kg7 {[%emt 0:00:17]} 29. Nd7 {[%emt 0:00:19]} f5 {[%emt 0:01:10]} 30. Nb6 {[%emt 0:00:15]} Rd8 {[%emt 0:00:23]} 31. c5 {[%emt 0:00:35]} Be8 {[%emt 0:01:24]} 32. Kf2 {[%emt 0:03:01]} Kf6 {[%emt 0:03:20]} 33. g4 {[%emt 0:00:38]} Ke5 {[%emt 0:03:49]} 34. gxf5 {[%emt 0:00:23]} Bf7 {[%emt 0:01:19]} 35. c6 {[%emt 0:00:54]} bxc6 {[%emt 0:00:27]} 36. dxc6 {[%emt 0:02:08]} Kd6 {[%emt 0:00:36]} 37. Rxe4 {[%emt 0:00:23]} Kxc6 {[%emt 0:00:16]} 38. Nc4 {[%emt 0:00:18]} Rb8 {[%emt 0:01:04]} 39. Re2 {[%emt 0:00:53]} Bxc4 {[%emt 0:00:23]} 40. bxc4 {[%emt 0:00:03]} Kc5 {[%emt 0:00:01]} 41. Kg3 {[%emt 0:00:27]} Kxc4 {[%emt 0:00:09]} 42. Kg4 {[%emt 0:00:24]} Kd5 {[%emt 0:00:25]} 43. Kh5 {[%emt 0:00:25]} Rb6 {[%emt 0:00:01]} 44. Re8 {[%emt 0:01:54]} Rf6 {[%emt 0:00:13]} 45. Kg4 {[%emt 0:00:07]} Kc4 {[%emt 0:00:17]} 46. Re6 {[%emt 0:00:16]} Rf8 {[%emt 0:00:07]} 47. Rxh6 {[%emt 0:00:17]} Rb8 {[%emt 0:00:21]} 48. Kxg5 {[%emt 0:01:12]} Rxb2 {[%emt 0:00:02]} 49. Rxa6 {[%emt 0:01:02]} Rg2+ {[%emt 0:00:11]} 50. Kf6 {[%emt 0:00:08]} Rxh2 {[%emt 0:00:01]} 51. Rd6 {[%emt 0:00:43]} Kc5 {[%emt 0:00:06]} 52. Rd1 {[%emt 0:00:35]} Rf2 {[%emt 0:00:21]} 53. Ke6 {[%emt 0:00:10]} Re2+ {[%emt 0:00:01]} 54. Kf7 {[%emt 0:00:09]} Rf2 {[%emt 0:00:03]} 55. f6 {[%emt 0:00:13]} Rf3 {[%emt 0:00:02]} 56. Kg7 {[%emt 0:00:27]} Rg3+ {[%emt 0:00:11]} 57. Kf8 {[%emt 0:00:12]} Rf3 {[%emt 0:00:02]} 58. f7 {[%emt 0:00:10]} Kc6 {[%emt 0:00:01]} 59. Rg1 {[%emt 0:00:31]} Kd6 {[%emt 0:00:51]} 60. Kg8 {[%emt 0:00:22]} Ke7 {[%emt 0:00:03]} 61. Re1+ {[%emt 0:00:08]} 1-0

[Event "Israeli Team U18-ch 2022"]
[Site "Be'er Ya'akov"]
[Date "2022.08.14"]
[Round "1.5"]
[White "Ben Ari, Yannay"]
[Black "Michaeli, Omri"]
[Result "1-0"]
[ECO "E44"]
[WhiteElo "2411"]
[BlackElo "1896"]
[Annotator "TA"]
[PlyCount "87"]
[EventDate "2022.08.14"]
[EventCountry "ISR"]
[SourceTitle "playchess.com"]
[Source "ChessBase"]
[SourceQuality "1"]
[TimeControl "3000+10"]

{[%evp 13,87,22,20,2,34,-31,61,66,95,95,97,90,91,91,187,195,186,195,197,182,190,183,214,205,227,209,225,220,249,237,324,335,366,371,364,309,303,315,288,267,254,154,243,218,240,143,445,226,663,666,665,658,655,658,923,927,916,914,914,916,915,911,904,897,889,0,785,0,869,863,844,804,890,885,29993,29994]} 1. d4 {[%emt 0:00:04]} Nf6 {[%emt 0:00:05]} 2. c4 {[%emt 0:01:08]} e6 {[%emt 0:00:05]} 3. Nc3 {[%emt 0:00:01]} Bb4 {[%emt 0:00:26]} 4. e3 {[%emt 0:00:04]} b6 {[%emt 0:00:07]} 5. Nge2 {[%emt 0:00:04]} O-O {[%emt 0:00:45]} 6. a3 {[%emt 0:00:43]} Bxc3+ {[%emt 0:00:38]} 7. Nxc3 {[%emt 0:00:02]} Bb7 {[%emt 0:00:09]} 8. b3 {[%emt 0:09:17] E44: Nimzo-Indian: Rubinstein: 4...b6 5 Ne2.} d6 {[%emt 0:01:26]} 9. Bd3 {[%emt 0:02:26]} (9. Bb2 $14) 9... Nbd7 {[%emt 0:00:47]} ({Black should play} 9... Bxg2 $15 10. Rg1 Bb7) 10. O-O $14 {[%emt 0:02:09] White is slightly better.} e5 {[%emt 0:01:25] White now steadily converts the win.} 11. d5 {[%emt 0:00:52] [#]} Qe7 $146 {[%emt 0:03:36]} ({Predecessor:} 11... h6 12. b4 Nh7 13. Qg4 Ndf6 14. Qe2 Qe7 15. e4 Rae8 16. Be3 Bc8 17. a4 Ng4 {1-0 (32) Faust,D (1758)-Panov,D (1800) FICGS email 2009}) 12. Bc2 {[%emt 0:01:00]} h6 {[%emt 0:01:31]} 13. e4 {[%emt 0:00:24]} g5 {[%emt 0:03:16]} (13... Rfb8 $16) 14. h4 $18 {[%emt 0:03:41]} Nh7 {[%emt 0:00:08]} 15. hxg5 {[%emt 0:03:44]} hxg5 {[%emt 0:01:49]} 16. Ne2 {[%emt 0:00:26]} Ndf6 {[%emt 0:01:03]} 17. Ng3 {[%emt 0:00:11] Inhibits Nh5.} Bc8 {[%emt 0:00:21]} 18. f3 {[%emt 0:00:29]} Kg7 {[%emt 0:02:27]} 19. Kf2 {[%emt 0:00:10]} Rg8 {[%emt 0:01:34]} 20. Be3 {[%emt 0:01:13]} Kf8 {[%emt 0:00:37]} 21. Rh1 {[%emt 0:01:37]} g4 {[%emt 0:01:16]} 22. f4 {[%emt 0:00:53] Inhibits Ng5.} exf4 {[%emt 0:01:00]} 23. Bxf4 {[%emt 0:00:01]} Ng5 {[%emt 0:00:45]} 24. Qd4 {[%emt 0:00:55]} Nd7 {[%emt 0:02:54]} 25. Rh6 {[%emt 0:11:27]} ({But not} 25. Nf5 Qf6 26. Qxf6 Nxf6 $18) 25... Ne5 {[%emt 0:00:59]} 26. Rah1 {[%emt 0:01:06]} f6 {[%emt 0:08:08]} 27. Qe3 {[%emt 0:07:16] [#] Bxg5 is the strong threat.} Qg7 {[%emt 0:00:59]} (27... Nef7 $16 {was worth a try.}) 28. Ke2 {[%emt 0:01:49] aiming for Qf2.} Bd7 {[%emt 0:01:04]} 29. Kd1 {[%emt 0:00:19] Active counter play!} (29. Qf2 $18) 29... Kf7 $2 {[%emt 0:02:15][%mdl 8192]} (29... Ke7 $16 30. Nf5+ Bxf5) 30. Qf2 {[%emt 0:00:58]} (30. Bxg5 $142 Qxg5 31. Qf2) 30... Raf8 $2 {[%emt 0:02:04]} (30... Nh3 31. gxh3 gxh3) 31. Bxe5 {[%emt 0:00:22]} dxe5 {[%emt 0:00:14]} 32. Nf5 {[%emt 0:00:24]} Bxf5 {[%emt 0:00:18]} 33. Qxf5 {[%emt 0:00:01][%cal Rf5d7]} Ke8 {[%emt 0:02:40] Against Qd7+} 34. Qc8+ {[%emt 0:00:03]} Ke7 {[%emt 0:00:20]} 35. Qxc7+ {[%emt 0:00:04]} Ke8 {[%emt 0:00:03]} 36. Qb8+ {[%emt 0:00:30]} Kd7 {[%emt 0:00:17]} 37. Qxa7+ {[%emt 0:00:06]} Kc8 {[%emt 0:00:40]} 38. Qa8+ {[%emt 0:00:08]} Kc7 {[%emt 0:00:34]} 39. Qa7+ {[%emt 0:00:08]} Kc8 {[%emt 0:00:07]} 40. Qa8+ {[%emt 0:00:06]} Kc7 {[%emt 0:00:06]} 41. Qc6+ {[%emt 0:00:02]} Kb8 {[%emt 0:00:28]} 42. Qxb6+ {[%emt 0:00:01]} Ka8 {[%emt 0:00:20]} 43. b4 {[%emt 0:00:25] Threatens to win with Ba4.} Rh8 {[%emt 0:00:13] [#]} 44. Ba4 $1 {[%emt 0:00:13] Weighted Error Value: White=0.57/Black=0.73} 1-0